bitfinex/quotes_ETHUSD_20260203
["timestamp","ask_amount","ask_price","bid_price","bid_amount"]
[1770133643627,12.35231043,2288.4,2286.8,0.01740265]
[1770133643844,12.35231043,2288.2,2286.9,1.09316393]
[1770133644120,1.09265734,2288.0,2286.6,1.09331306]
[1770133644344,1.09265734,2288.0,2286.6,0.01740265]
[1770133644542,13.7201377,2287.9,2286.4,1.09338517]
[1770133644720,13.7201377,2287.9,2286.5,1.09334029]
[1770133644921,12.35231043,2287.6,2286.0,0.01740265]
[1770133645146,0.918,2287.5,2286.6,1.09331459]
[1770133645365,0.918,2287.4,2286.7,1.09327186]
[1770133645653,15.41695585,2288.1,2286.7,1.09327186]
[1770133645654,0.917,2287.3,2286.7,1.09327186]
[1770133645952,12.45471043,2288.0,2286.7,1.09327186]
[1770133646151,12.45471043,2288.0,2286.7,1.11067451]
[1770133646152,0.917,2287.9,2286.7,1.11067451]
[1770133646317,12.45471043,2287.8,2286.6,1.09329953]
[1770133646524,0.1024,2287.9,2286.8,0.01740265]
[1770133646757,12.35231043,2288.3,2287.2,0.01740265]
[1770133647056,0.917,2288.2,2287.6,0.01740265]
[1770133647253,1.09342554,2288.7,2287.6,0.01740265]
[1770133647254,0.0011,2288.7,2287.6,0.01740265]
[1770133647457,0.0011,2288.7,2287.4,0.01740265]
[1770133647458,0.917,2288.6,2287.4,0.01740265]
[1770133647863,0.0011,2288.7,2287.5,0.01740265]
[1770133648171,0.917,2289.5,2289.2,0.01740265]
[1770133648464,0.0011,2290.5,2289.8,0.01740265]
[1770133648769,0.1100268,2290.7,2289.8,0.55115935]
[1770133648978,0.1100268,2290.7,2289.8,0.01740265]
[1770133649270,0.0011,2291.3,2290.5,0.01740265]
[1770133649435,0.917,2291.2,2289.7,1.10924874]
[1770133649640,1e-08,2291.3,2290.1,0.01740265]
[1770133649843,0.917,2291.2,2289.8,0.55115935]
[1770133650046,0.917,2291.1,2289.8,0.55115935]
[1770133650243,0.917,2291.0,2289.3,0.01740265]
[1770133650535,0.01740265,2291.2,2289.4,4.36784844]
[1770133650536,12.35231043,2291.1,2289.4,4.36784844]
[1770133650976,0.01740265,2290.7,2289.4,4.36784844]
[1770133651150,1e-08,2291.3,2289.4,4.36784844]
[1770133651353,1e-08,2291.3,2289.9,0.01740265]
[1770133651971,0.0011,2290.5,2289.8,0.01740265]
[1770133652177,0.0011,2290.5,2289.5,0.54598376]
[1770133652390,0.0011,2290.5,2289.6,1.09189378]
[1770133653643,1e-08,2291.3,2290.2,0.01740265]
[1770133653943,1e-08,2291.3,2289.4,4.48765109]
[1770133654147,1e-08,2291.3,2289.7,1.88634642]
[1770133654148,1.0910995,2291.3,2289.7,1.88634642]
[1770133654345,1.0910995,2291.3,2289.6,1.09189378]
[1770133654346,0.1024,2291.2,2289.6,1.09189378]
[1770133654549,2.10953168,2291.2,2289.6,1.09189378]
[1770133654740,0.01740265,2291.0,2289.6,1.09189378]
[1770133655139,0.01740265,2290.9,2289.6,1.09189378]
[1770133655341,0.916,2290.9,2289.6,1.09189378]
[1770133655649,0.01740265,2291.0,2289.6,1.09189378]
[1770133655851,0.93340265,2290.9,2289.6,1.09189378]
[1770133656034,0.916,2290.8,2289.6,1.09189378]
[1770133656365,0.01740265,2290.7,2288.9,0.916]
[1770133656573,0.01740265,2290.4,2289.3,1.09202877]
[1770133656738,1.09135562,2290.8,2289.3,1.63805236]
[1770133656935,0.01740265,2290.7,2289.3,1.63805236]
[1770133657139,0.01740265,2290.6,2289.3,1.63805236]
[1770133657376,0.01740265,2290.7,2289.3,1.63805236]
[1770133657549,0.916,2290.6,2289.3,1.63805236]
[1770133658063,0.01740265,2290.7,2289.3,1.63805236]
[1770133658280,1e-08,2291.3,2289.6,0.01740265]
[1770133658573,13.46079872,2291.3,2289.7,1.09184609]
[1770133658870,0.01740265,2291.2,2289.8,0.54592305]
[1770133659367,0.11980265,2291.2,2289.7,1.09184609]
[1770133659538,0.11980265,2291.2,2289.6,1.09188779]
[1770133659539,0.1024,2291.0,2289.6,1.09188779]
[1770133659740,0.01740265,2290.7,2289.4,4.36793162]
[1770133659941,0.01740265,2290.7,2289.6,1.09188345]
[1770133660141,0.916,2290.8,2289.6,1.09188345]
[1770133660541,12.45471043,2291.0,2289.4,1.09198916]
[1770133660743,0.916,2290.9,2289.5,0.60061315]
[1770133661774,0.01740265,2290.6,2289.4,1.09198916]
[1770133661974,0.01740265,2290.4,2289.3,1.09200184]
[1770133662178,0.11980265,2290.8,2289.3,1.09200184]
[1770133662478,0.11980265,2290.8,2288.7,4.36914067]
[1770133662479,0.01740265,2290.2,2288.7,4.36914067]
[1770133662642,0.01740265,2290.2,2288.7,5.35224665]
[1770133662846,0.01740265,2290.2,2288.8,11.90720627]
[1770133663176,0.1024,2290.8,2289.1,0.01740265]
[1770133663345,13.56344028,2290.8,2289.0,0.00393243]
[1770133663877,0.01740265,2290.6,2288.7,5.3696493]
[1770133664084,13.56344028,2290.8,2288.8,0.66534016]
[1770133664262,12.35231043,2291.1,2289.3,0.01740265]
[1770133664463,1.19366366,2291.0,2289.7,0.001]
[1770133664660,2.10966366,2291.0,2289.7,0.001]
[1770133665017,1e-08,2291.3,2290.3,0.01740265]
[1770133665173,12.35231043,2292.8,2291.4,0.01740265]
[1770133665377,1.09018552,2293.2,2291.5,0.01740265]
[1770133665552,0.916,2293.1,2291.6,0.01740265]
[1770133665758,0.30080544,2293.8,2292.5,0.01740265]
[1770133666054,13.44177746,2294.7,2292.8,0.01740265]
[1770133666255,13.26831043,2294.6,2292.5,0.01740265]
[1770133666469,1.08965697,2294.3,2292.5,1.09051254]
[1770133666872,0.01740265,2294.1,2292.4,1.09052631]
[1770133667175,0.01740265,2294.1,2292.1,0.93340265]
[1770133667176,12.45471043,2294.2,2292.1,0.916]
[1770133667378,0.01740265,2293.6,2292.1,0.916]
[1770133667583,0.01740265,2293.4,2292.1,0.916]
[1770133667882,0.01740265,2293.3,2292.1,0.916]
[1770133668097,0.01740265,2293.4,2291.5,0.915]
[1770133668396,0.01740265,2293.0,2292.0,1.09072003]
[1770133668597,12.47211308,2293.0,2291.1,0.01740265]
[1770133668903,12.47211308,2293.0,2291.0,0.01740265]
[1770133668904,0.01740265,2292.7,2291.4,1.09100406]
[1770133669059,0.01740265,2292.7,2291.3,4.36418479]
[1770133669060,0.01740265,2292.1,2291.1,1.09117165]
[1770133669256,0.1024,2292.3,2290.4,0.915]
[1770133669485,0.01740265,2292.1,2291.0,1.09119537]
[1770133669686,0.01740265,2292.1,2291.1,1.09117656]
[1770133669895,0.01740265,2292.1,2291.1,1.09116545]
[1770133670066,0.01740265,2292.1,2291.1,1.09113838]
[1770133670266,0.01740265,2292.1,2291.1,1.09117627]
[1770133670459,0.01740265,2291.9,2290.5,6.08462935]
[1770133670661,0.01740265,2292.2,2290.6,2.22794686]
[1770133670888,0.01740265,2291.6,2290.4,1.09147907]
[1770133671193,0.11980265,2291.8,2290.5,1.09146059]
[1770133671400,0.01740265,2291.4,2290.3,1.09154419]
[1770133671610,0.1024,2291.8,2290.5,1.09142904]
[1770133671773,0.1024,2292.0,2290.5,1.09142904]
[1770133672269,0.01740265,2292.3,2290.5,1.09142904]
[1770133672531,14.54697556,2292.5,2290.8,1.0913218]
[1770133672669,14.56437821,2292.5,2290.8,1.0913218]
[1770133672880,0.01740265,2292.2,2290.8,1.0913218]
[1770133673092,0.01740265,2292.1,2290.8,1.0913218]
[1770133673296,0.01740265,2292.2,2290.8,2.12808431]
[1770133673607,0.11980265,2292.4,2290.8,2.12808431]
[1770133673815,0.01740265,2292.3,2290.8,2.12808431]
[1770133674306,12.96640104,2294.4,2292.2,12.36091469]
[1770133674507,0.52489258,2295.8,2294.2,0.01740265]
[1770133674674,13.64937291,2296.1,2294.4,0.01740265]
[1770133674869,11.87677415,2296.1,2294.5,0.01740265]
[1770133675107,0.01740265,2297.0,2294.5,0.01740265]
[1770133675108,11.87677415,2296.8,2295.4,0.01740265]
[1770133675329,12.96496242,2297.4,2295.6,0.01740265]
[1770133675486,12.96496242,2297.4,2295.7,0.38690061]
[1770133675487,0.01740265,2297.2,2295.7,0.38690061]
[1770133675669,11.87677415,2297.3,2295.8,0.38690061]
[1770133675873,11.87677415,2297.3,2295.9,0.38690061]
[1770133676074,1.08819205,2297.4,2295.3,0.915]
[1770133676272,0.01740265,2297.3,2295.3,0.915]
[1770133676502,1.0885657,2296.6,2295.3,0.915]
[1770133676674,1.0885657,2296.6,2295.3,1.6e-07]
[1770133676874,0.01740265,2297.0,2295.3,1.08918039]
[1770133677092,13.88010603,2297.1,2295.5,0.01740265]
[1770133677296,0.0011,2296.6,2295.5,0.01740265]
[1770133677500,0.0011,2296.6,2295.7,0.01740265]
[1770133677801,0.0011,2296.8,2295.9,0.01740265]
[1770133678003,0.0011,2296.8,2295.8,0.01740265]
[1770133678204,0.30321654,2297.5,2296.0,0.01740265]
[1770133678389,1.08804456,2297.7,2295.7,0.01740265]
[1770133678592,0.01740265,2297.0,2295.7,1.08899246]
[1770133678803,0.01740265,2297.0,2295.4,4.35641447]
[1770133678804,0.01740265,2296.9,2295.4,4.35641447]
[1770133679005,0.01740265,2296.9,2295.6,1.08903866]
[1770133679318,0.01740265,2297.1,2295.3,9e-08]
[1770133679497,0.01740265,2296.6,2295.4,1.08913455]
[1770133679700,0.01740265,2296.6,2295.6,1.08903897]
[1770133679907,0.01740265,2296.7,2295.6,1.08903689]
[1770133680420,0.01740265,2296.7,2294.4,1.08957704]
[1770133680421,0.01740265,2295.9,2294.4,1.08957704]
[1770133680601,1.10587356,2296.8,2294.5,0.01740265]
[1770133680800,0.01740265,2297.5,2295.2,0.25097295]
[1770133681014,0.01740265,2297.3,2295.4,0.01740265]
[1770133681324,0.0011,2297.8,2296.0,0.01740265]
[1770133681639,1.08719286,2299.5,2297.7,0.01740265]
[1770133681930,10.0,2300.0,2297.7,0.01740265]
[1770133681931,0.22511212,2299.8,2298.4,0.01740265]
[1770133682130,1e-08,2299.7,2298.7,0.01740265]
[1770133682437,1e-08,2299.7,2298.3,0.01740265]
[1770133682593,1e-08,2299.7,2298.5,0.01740265]
[1770133682930,1e-08,2299.7,2298.7,0.01740265]
[1770133683100,1e-08,2299.7,2298.6,0.01740265]
[1770133683295,1e-08,2299.7,2297.9,1.08794986]
[1770133683524,1e-08,2299.7,2298.5,0.01740265]
[1770133683732,0.01740265,2301.2,2299.6,0.01740265]
[1770133683733,11.87677415,2301.2,2299.6,0.01740265]
[1770133683937,12.96320515,2301.2,2299.7,0.01740265]
[1770133684233,11.89850903,2301.1,2299.1,0.02173488]
[1770133684393,11.97917415,2300.9,2298.6,0.914]
[1770133684594,0.02173488,2301.0,2298.4,0.02173488]
[1770133684595,11.87677415,2300.2,2298.4,0.02173488]
[1770133684899,11.87677415,2300.2,2297.9,0.02173488]
[1770133684900,0.12413488,2299.2,2297.3,1.08820412]
[1770133685221,0.12413488,2299.2,2297.4,1.088169]
[1770133685222,11.87677415,2298.9,2297.4,1.088169]
[1770133685422,11.87677415,2298.9,2297.4,1.10991593]
[1770133685625,11.97917415,2300.2,2298.3,0.02173488]
[1770133685931,12.96325828,2301.0,2299.0,0.02173488]
[1770133686232,12.96325828,2301.0,2298.4,0.02173488]
[1770133686233,11.87677415,2301.0,2299.1,0.327]
[1770133686403,11.87677415,2300.9,2299.2,0.02173488]
[1770133686733,1.08657858,2300.8,2299.3,1.08728743]
[1770133686895,11.87677415,2300.9,2299.3,1.10902231]
[1770133687094,11.87677415,2300.9,2299.2,1.0873175]
[1770133687095,12.96330809,2300.9,2299.2,1.0873175]
[1770133687321,11.87677415,2300.7,2299.2,1.08732791]
[1770133687541,11.87677415,2300.3,2299.2,1.08732882]
[1770133687695,11.97917415,2300.2,2298.7,0.02173488]
[1770133687896,11.97917415,2299.7,2297.9,0.02173488]
[1770133688222,6.76252626,2300.1,2298.1,1.08785157]
[1770133688223,11.87677415,2299.3,2298.1,1.08785157]
[1770133688424,11.87677415,2299.3,2298.4,1.08767568]
[1770133688634,0.25530518,2300.4,2297.9,4.35166927]
[1770133688635,12.9637521,2300.0,2298.6,0.02173488]
[1770133688794,1.08672027,2300.5,2299.0,0.02173488]
[1770133689297,11.97917415,2300.5,2298.8,0.02173488]
[1770133689496,11.89850903,2299.9,2298.1,1.08785518]
[1770133689717,0.1024,2299.7,2298.1,1.08785518]
[1770133690028,11.87677415,2299.8,2298.3,0.02173488]
[1770133690234,11.87677415,2300.5,2299.0,0.02173488]
[1770133690432,0.0011,2300.7,2299.4,0.02173488]
[1770133690633,12.96452266,2300.7,2299.1,0.02173488]
[1770133690924,12.96452266,2300.7,2299.0,1.10916419]
[1770133691226,12.96452266,2300.7,2299.0,1.08742931]
[1770133691227,12.98625754,2300.7,2299.0,1.08742931]
[1770133691427,11.97917415,2300.6,2299.0,1.08742931]
[1770133691724,11.87677415,2299.8,2298.2,0.02173488]
[1770133691900,11.97917415,2299.1,2297.5,1.08813775]
[1770133692101,0.1024,2299.0,2297.2,0.001]
[1770133692302,0.1024,2299.0,2297.6,4.35226504]
[1770133692501,0.912,2299.3,2297.9,0.02173488]
[1770133692695,0.912,2299.3,2298.0,1.08790252]
[1770133692891,0.912,2299.3,2297.9,1.08792914]
[1770133693095,11.89850903,2298.8,2297.3,1.08823392]
[1770133693296,0.12413488,2298.7,2297.2,0.001]
[1770133693491,0.1024,2298.7,2297.3,4.35286476]
[1770133693718,1.0144,2298.7,2297.4,1.08816055]
[1770133693935,11.87677415,2298.8,2297.2,0.02273488]
[1770133694139,11.87677415,2298.8,2297.7,4.35202638]
[1770133694443,0.1024,2299.3,2297.9,1.08793864]
[1770133694660,1.08733472,2299.2,2297.8,4.35179946]
[1770133694817,1.18971134,2299.3,2297.8,4.35179946]
[1770133695012,1.18971134,2299.3,2297.8,4.37353434]
[1770133695214,1.18971134,2299.3,2297.9,0.54832664]
[1770133695458,1.18971134,2299.3,2297.8,4.35179946]
[1770133695674,11.87677415,2300.0,2298.6,0.02173488]
[1770133695945,1.08672027,2300.5,2298.9,0.02173488]
[1770133696242,0.912,2300.5,2298.9,0.02173488]
[1770133696573,0.1024,2300.2,2298.1,0.93373488]
[1770133696840,1.08690926,2300.1,2298.4,1.08771319]
[1770133697010,1.10864414,2300.1,2298.4,1.08771319]
[1770133697213,1.08672027,2300.6,2298.7,0.02173488]
[1770133697516,1.08772913,2300.7,2298.8,0.02173488]
[1770133697712,0.02173488,2300.6,2298.7,0.02173488]
[1770133697918,0.12413488,2300.6,2298.7,0.02173488]
[1770133698141,0.02173488,2300.4,2298.6,0.02173488]
[1770133698338,11.97917415,2300.6,2298.7,0.02173488]
[1770133698542,1.08774547,2300.7,2299.4,0.02173488]
[1770133698740,0.0011,2300.7,2299.8,1.08705104]
[1770133698942,0.0011,2300.7,2298.1,0.02173488]
[1770133699248,0.12413488,2300.1,2298.6,1.08760694]
[1770133699417,0.12413488,2300.1,2298.2,4.37293828]
[1770133699418,1.0144,2300.1,2298.2,4.37293828]
[1770133699615,11.87677415,2300.8,2299.6,1.087114]
[1770133699825,11.87677415,2300.8,2299.4,4.34878983]
[1770133699826,1.0155,2300.7,2299.4,4.34878983]
[1770133700148,0.02173488,2300.6,2298.8,0.02173488]
[1770133700315,0.02173488,2300.6,2299.0,1.08740059]
[1770133700316,0.02173488,2300.3,2299.0,1.08740059]
[1770133700520,0.0011,2300.7,2299.7,1.08709284]
[1770133700719,0.0011,2300.7,2299.2,4.34923537]
[1770133700917,0.0011,2300.7,2299.8,0.02173488]
[1770133701143,0.0011,2300.7,2300.0,0.02173488]
[1770133701619,0.0011,2300.7,2299.0,4.37107378]
[1770133701820,0.0011,2300.7,2299.7,0.02173488]
[1770133702158,0.0011,2300.7,2299.9,0.02173488]
[1770133702343,0.0011,2301.9,2300.6,0.02173488]
[1770133702344,1.08716814,2301.9,2300.6,0.02173488]
[1770133702660,1.08718046,2301.9,2300.7,0.02173488]
[1770133702838,0.0011,2301.9,2300.8,1.10831346]
[1770133703041,0.0011,2301.9,2301.0,0.02173488]
[1770133703755,0.0011,2300.9,2300.8,0.02173488]
[1770133703918,0.0011,2300.9,2300.4,0.02173488]
[1770133703919,0.0011,2300.9,2300.3,0.69]
[1770133704119,0.0011,2300.9,2300.1,0.02173488]
[1770133704120,0.0011,2300.9,2300.6,1.08667062]
[1770133704433,0.0011,2300.9,2300.0,0.02173488]
[1770133704744,0.0011,2300.9,2300.3,1.0867748]
[1770133704950,0.0011,2300.9,2300.3,1.08679448]
[1770133705131,1.08615371,2301.7,2300.4,0.02173488]
[1770133705324,1.08615371,2301.7,2300.5,0.02173488]
[1770133705539,13.1595518,2301.7,2300.1,0.02173488]
[1770133705719,0.1024,2301.4,2299.6,0.02173488]
[1770133706061,0.02173488,2301.2,2298.8,0.02173488]
[1770133706218,12.09513297,2300.8,2298.8,0.02173488]
[1770133706418,0.02173488,2300.3,2298.6,1.99959025]
[1770133706721,0.02173488,2300.3,2299.0,0.02173488]
[1770133706722,1.08681476,2300.3,2299.0,0.02173488]
[1770133706919,1.08653135,2301.0,2299.2,0.02173488]
[1770133707240,5.25829091,2300.9,2299.3,0.02173488]
[1770133707422,13.10953297,2300.8,2298.8,0.02173488]
[1770133707620,0.02173488,2300.7,2298.9,0.02173488]
[1770133707926,13.10953297,2300.8,2298.8,0.02173488]
[1770133708128,0.02173488,2300.7,2298.8,0.02173488]
[1770133708339,0.912,2300.6,2298.8,0.66324096]
[1770133708540,0.1024,2300.5,2298.8,0.66324096]
[1770133708749,1.08676751,2300.4,2298.9,1.08747661]
[1770133708961,1.10850239,2300.4,2298.8,1.72901281]
[1770133709263,0.1024,2300.3,2298.8,1.08750162]
[1770133709561,1.08643692,2301.1,2299.5,0.02173488]
[1770133709731,1.08643692,2301.1,2299.7,0.02173488]
[1770133710132,1.99810652,2301.8,2300.0,0.02173488]
[1770133710336,12.09513297,2301.7,2299.8,0.02173488]
[1770133710543,0.02173488,2301.3,2299.1,0.02173488]
[1770133710733,1.08643692,2301.1,2299.4,1.08724014]
[1770133711132,0.12413488,2301.4,2300.0,0.02173488]
[1770133711133,1.08629529,2301.4,2300.0,0.02173488]
[1770133711565,1.08629529,2301.4,2300.1,0.02173488]
[1770133711733,1.08629529,2301.4,2299.1,5.48414002]
[1770133711931,1.08629529,2301.4,2300.0,0.02173488]
[1770133712262,1.08629529,2301.4,2299.1,4.37069547]
[1770133712263,1.08629529,2301.4,2299.1,5.2293858]
[1770133712449,0.02173488,2301.3,2299.4,1.08724014]
[1770133712649,0.02173488,2301.2,2299.4,1.08724014]
[1770133712851,1.0863897,2301.2,2299.7,0.02173488]
[1770133713049,1.0863897,2301.2,2299.8,0.02173488]
[1770133713249,1.0863897,2301.2,2299.7,0.02173488]
[1770133713250,1.0863897,2301.2,2299.6,0.02173488]
[1770133713631,1.08624809,2301.6,2300.1,0.02173488]
[1770133713831,4.34486605,2301.8,2300.2,0.02173488]
[1770133714038,1.99820652,2301.9,2300.7,0.02173488]
[1770133714039,0.0011,2301.9,2300.7,0.02173488]
[1770133714239,3.00290498,2302.9,2300.7,0.02173488]
[1770133714240,1.49058505,2303.4,2301.6,0.02173488]
[1770133714462,1.19391307,2304.2,2303.0,0.02173488]
[1770133714669,0.1089268,2304.2,2303.0,0.02173488]
[1770133714981,1.19390703,2304.2,2303.1,1.08548848]
[1770133715264,1.19390703,2304.2,2302.6,0.02173488]
[1770133715568,1.19390703,2304.2,2302.8,4.34248116]
[1770133715871,0.02173488,2303.8,2302.3,0.911]
[1770133716034,0.02173488,2303.7,2302.3,0.911]
[1770133716235,0.02173488,2303.6,2302.3,0.911]
[1770133716538,0.02173488,2303.5,2302.0,1.0859715]
[1770133716737,0.02173488,2303.4,2301.5,0.911]
[1770133716941,0.0011,2302.0,2301.6,1.10793578]
[1770133717142,1.10703985,2303.5,2301.6,1.10793578]
[1770133717360,1.08530497,2303.5,2301.6,1.10793578]
[1770133717574,0.02173488,2303.4,2301.6,1.0862009]
[1770133718063,1.08530497,2303.5,2301.6,1.0862009]
[1770133718239,1.08530497,2303.5,2301.5,1.99724224]
[1770133718240,0.02173488,2302.9,2301.5,1.99724224]
[1770133718439,0.02173488,2302.7,2300.8,0.02173488]
[1770133718639,0.02173488,2302.7,2300.7,1.08659161]
[1770133718640,0.02173488,2302.3,2300.7,1.08659161]
[1770133718945,0.02173488,2302.3,2300.3,1.08681476]
[1770133718946,1.10779422,2301.9,2300.3,1.08681476]
[1770133719269,1.08605934,2301.9,2300.4,0.54340738]
[1770133719772,4.34367127,2302.3,2300.4,0.56514226]
[1770133719944,4.34334175,2302.4,2300.5,0.02173488]
[1770133720143,4.34334175,2302.4,2300.6,0.02173488]
[1770133720342,0.02173488,2302.1,2300.4,0.54340738]
[1770133720550,0.02173488,2301.9,2300.4,0.54340738]
[1770133720860,1.08610652,2301.8,2300.5,1.08672027]
[1770133721063,1.1078414,2301.8,2300.5,1.08672027]
[1770133721267,1.08610652,2301.8,2300.5,1.08672027]
[1770133721440,1.08610652,2301.8,2300.0,5.25880074]
[1770133721441,1.08610652,2301.8,2300.3,1.08679424]
[1770133721648,0.02173488,2301.3,2299.9,1.08696061]
[1770133721946,0.1024,2301.7,2300.4,1.08676651]
[1770133722249,1.08610652,2301.8,2300.4,1.08676651]
[1770133722475,1.08610652,2301.8,2300.4,2.06486321]
[1770133722678,1.16039569,2303.0,2300.9,0.02173488]
[1770133722863,4.34121988,2303.6,2301.7,0.02173488]
[1770133723065,4.34121988,2303.6,2301.9,0.02173488]
[1770133723467,0.02173488,2303.5,2301.8,0.02173488]
[1770133723771,0.02173488,2303.4,2301.5,0.911]
[1770133723976,0.02173488,2303.3,2301.5,0.911]
[1770133724172,0.02173488,2303.2,2301.5,0.911]
[1770133724371,0.02173488,2302.9,2301.5,0.911]
[1770133724745,16.41461797,2303.6,2301.5,0.911]
[1770133724958,0.02173488,2303.1,2301.6,1.0862009]
[1770133725166,0.02173488,2302.9,2301.1,0.02173488]
[1770133725357,0.02173488,2302.9,2300.9,0.02173488]
[1770133725358,0.02173488,2302.7,2300.9,0.02173488]
[1770133725566,0.02173488,2302.5,2300.7,0.02173488]
[1770133725770,0.12413488,2302.7,2301.3,1.08633256]
[1770133725967,0.02173488,2302.5,2300.8,0.02173488]
[1770133726158,0.02173488,2302.5,2300.7,0.02173488]
[1770133726159,12.19753297,2302.4,2300.7,0.02173488]
[1770133726475,0.02173488,2301.7,2300.1,1.08688658]
[1770133726684,0.02173488,2301.9,2300.4,1.08674139]
[1770133726882,0.02173488,2301.7,2299.8,4.34808584]
[1770133727084,0.02173488,2301.7,2299.9,1.52181236]
[1770133727254,0.02173488,2301.4,2299.9,0.43480858]
[1770133727454,0.1024,2301.7,2299.9,0.43480858]
[1770133727655,0.12413488,2301.7,2299.9,0.43480858]
[1770133727912,1.08610652,2301.8,2300.0,0.02173488]
[1770133728053,1.08608561,2301.9,2300.6,0.02173488]
[1770133728249,1.08591781,2302.2,2301.7,0.001]
[1770133728482,1.08591781,2302.2,2300.7,0.02173488]
[1770133728982,4.34334123,2302.4,2301.5,0.001]
[1770133729201,4.34334123,2302.4,2300.9,1.08653135]
[1770133729202,4.36507611,2302.4,2300.9,1.08653135]
[1770133729365,12.19753297,2302.3,2300.5,0.93273488]
[1770133729680,0.02173488,2301.6,2300.5,0.001]
[1770133729881,0.02173488,2301.5,2300.5,0.001]
[1770133730053,0.02173488,2301.6,2300.5,0.001]
[1770133730670,0.12413488,2301.7,2300.5,0.001]
[1770133730881,0.12413488,2301.7,2299.7,0.93273488]
[1770133730882,12.5758634,2301.7,2299.7,0.93273488]
[1770133731176,12.5758634,2301.7,2299.6,0.001]
[1770133731177,0.02173488,2301.0,2299.6,0.001]
[1770133731354,0.02173488,2300.9,2299.6,0.001]
[1770133731553,0.02173488,2301.0,2299.6,1.08814291]
[1770133731762,0.02173488,2300.8,2299.6,0.001]
[1770133732288,13.4868634,2300.8,2299.6,0.001]
[1770133732652,13.46512852,2300.8,2299.6,0.001]
[1770133733013,0.02173488,2300.5,2299.4,0.001]
[1770133733157,0.02173488,2299.7,2298.4,0.001]
[1770133733353,0.911,2299.9,2298.9,1.08746903]
[1770133733659,1.08667304,2300.6,2298.9,1.08746903]
[1770133733862,1.08667304,2300.6,2299.0,0.54591807]
[1770133734089,1.08667304,2300.6,2299.2,0.02173488]
[1770133734254,1.08667304,2300.6,2299.0,0.56765295]
[1770133734451,4.34643932,2300.8,2299.0,0.56765295]
[1770133734680,4.34612542,2301.0,2299.6,0.02173488]
[1770133735058,17.30976701,2301.0,2299.3,1.08724026]
[1770133735386,4.34612542,2301.0,2299.6,1.08712169]
[1770133735559,4.34612542,2301.0,2299.3,0.02173488]
[1770133736080,4.34612542,2301.0,2299.2,0.02173488]
[1770133736081,0.12413488,2300.9,2299.2,0.02173488]
[1770133736285,13.08777647,2300.9,2299.2,0.02173488]
[1770133736460,4.3678603,2301.0,2299.6,1.08714085]
[1770133736461,4.34612542,2301.0,2299.6,1.08714085]
[1770133736781,0.1024,2300.9,2299.3,1.08725477]
[1770133736968,0.1024,2300.7,2299.3,1.08728743]
[1770133737755,1.08657858,2300.8,2299.3,1.08728743]
[1770133737958,4.34530673,2301.4,2299.8,0.02173488]
[1770133738276,4.3448503,2301.6,2299.9,0.02173488]
[1770133738479,4.3448503,2301.6,2300.0,0.02173488]
[1770133738790,0.1024,2301.5,2300.0,0.02173488]
[1770133739084,4.3448503,2301.6,2300.1,1.08690926]
[1770133739283,4.3448503,2301.6,2300.1,1.10864414]
[1770133739504,4.3448503,2301.6,2300.1,1.08690926]
[1770133739658,1.08591781,2302.2,2300.7,0.02173488]
[1770133739862,4.34334215,2302.4,2300.8,0.02173488]
[1770133740111,5.2537281,2302.8,2301.0,0.02173488]
[1770133740388,0.02173488,2302.4,2300.6,0.911]
[1770133740886,0.02173488,2302.6,2300.6,0.911]
[1770133741192,1.08563487,2302.8,2301.3,0.02173488]
[1770133741355,1.08563487,2302.8,2301.2,0.02173488]
[1770133741781,1.08563487,2302.8,2301.1,0.02173488]
[1770133742165,1.08563487,2302.8,2300.7,4.3680492]
[1770133742166,0.0011,2301.4,2300.8,1.08657858]
[1770133743257,0.0011,2301.4,2300.7,1.08660535]
[1770133743699,0.0011,2302.6,2301.3,0.02173488]
[1770133743985,0.0011,2302.6,2301.7,0.02173488]
[1770133744183,1.08683159,2302.6,2301.3,0.02173488]
[1770133744496,1.08683159,2302.6,2301.0,0.02173488]
[1770133744984,1.08684037,2302.6,2301.4,0.02173488]
[1770133745156,0.0011,2303.4,2302.1,1.10769986]
[1770133745355,0.0011,2303.4,2302.2,0.02173488]
[1770133745555,0.0011,2303.4,2302.3,0.02173488]
[1770133745886,0.0011,2303.4,2301.7,4.36629783]
[1770133746090,0.0011,2303.4,2301.9,1.0860393]
[1770133746405,13.06714159,2303.4,2301.5,0.93273488]
[1770133746609,0.1024,2302.8,2300.6,0.02173488]
[1770133746907,0.12413488,2302.6,2301.0,1.0864818]
[1770133747069,13.08777647,2302.6,2300.8,4.34627568]
[1770133747273,0.1024,2302.4,2300.7,1.10836068]
[1770133747506,0.1024,2302.4,2300.8,0.54765988]
[1770133747710,1.08577633,2302.5,2300.9,7.2235569]
[1770133747912,1.08540461,2303.3,2301.4,0.02173488]
[1770133748074,4.34269683,2303.4,2301.9,0.02173488]
[1770133748075,0.0011,2303.4,2301.9,0.02173488]
[1770133748277,1.08647463,2303.4,2302.1,0.02173488]
[1770133748473,0.0011,2303.4,2302.1,0.02173488]
[1770133748678,0.0011,2303.4,2302.4,0.02173488]
[1770133748875,0.0011,2303.4,2302.8,0.02173488]
[1770133749107,1.19390705,2304.2,2303.0,0.02173488]
[1770133749282,1.19390705,2304.2,2303.0,1.08553887]
[1770133749482,1.19390705,2304.2,2303.0,1.62833493]
[1770133749684,0.1089268,2304.2,2303.0,1.62833493]
[1770133750150,1.19391122,2304.2,2303.0,1.62833493]
[1770133750318,1.19391122,2304.2,2303.0,1.62831728]
[1770133750607,0.02173488,2304.1,2302.6,4.34284625]
[1770133750775,0.02173488,2303.7,2301.9,0.02173488]
[1770133750980,0.02173488,2303.7,2302.4,1.085823]
[1770133751181,0.02173488,2303.7,2301.9,4.34413014]
[1770133751182,1.08525785,2303.6,2301.9,1.08605934]
[1770133751479,1.08525785,2303.6,2302.0,4.34399331]
[1770133751674,1.08525785,2303.6,2302.1,0.54300527]
[1770133752007,0.0011,2304.6,2303.4,0.02173488]
[1770133752208,1.08589416,2304.6,2303.1,0.911]
[1770133752573,1.10762904,2304.6,2303.1,0.911]
[1770133752778,0.1024,2304.5,2302.8,0.02173488]
[1770133753212,1.08488109,2304.4,2302.9,1.08558773]
[1770133753381,0.02173488,2303.7,2302.2,4.3436592]
[1770133753588,0.02173488,2303.7,2300.8,7.66008998]
[1770133753589,0.02173488,2302.7,2300.8,7.66008998]
[1770133753919,0.02173488,2302.8,2300.9,1.08653135]
[1770133754119,0.1024,2303.0,2301.0,0.02173488]
[1770133754330,0.1024,2303.0,2301.0,1.31579514]
[1770133754331,0.02173488,2302.9,2301.0,1.31579514]
[1770133754632,0.02173488,2302.4,2300.8,1.63420466]
[1770133754795,0.02173488,2302.3,2300.8,1.63420466]
[1770133755000,0.1024,2302.6,2300.8,1.63420466]
[1770133755341,0.02173488,2302.2,2300.8,1.63422252]